Cogmind - Beta 9.4 *** ADVENTURER MODE // 2020.06.16 @ 21:42:45 Player: Scyralis Result: Destroyed by G-34 Mercenary with Small Laser Performance ------------- Evolutions (0) 0 Regions Visited (1) 200 Robots Destroyed (4) 20 Value Destroyed (46) 46 Prototype IDs (0) 0 Alien Tech Used (0) 0 Bonus (0) 0 TOTAL SCORE: 266 Bonus ------- None Cogmind --------- Core Integrity 0/250 Matter 125/300 Energy 68/100 System Corruption 0% Temperature Cool (6) Movement Flying (37) Location -10/Materials Parts ------- > --- POWER (1) -------- (None) > --- PROPULSION (2) --- Flight Unit Flight Unit > --- UTILITY (2) ------ Small Storage Unit > --- WEAPON (2) ------- (None) > --- INVENTORY (6) ---- (None) Peak State ------------ > --- POWER ------------ (None) > --- PROPULSION ------- Flight Unit Flight Unit > --- UTILITY ---------- Small Storage Unit > --- WEAPON ----------- (None) > --- INVENTORY -------- (None) [Rating: 3] Favorites ----------- Power Light Ion Engine Engine Light Ion Engine Propulsion Flight Unit Flight Unit Flight Unit Utility Small Storage Unit Storage Small Storage Unit Weapon Assault Rifle Ballistic Gun Assault Rifle Build | -11 -10 ------- Run | Scr Mat Slots Evolved . | . . Power . | . . Propulsion . | . . Utility . | . . Weapon . | . . Parts Attached 6 | 3 3 Power 2 | 2 . Engine 2 | 2 . Core . | . . Reactor . | . . Propulsion 2 | . 2 Treads . | . . Leg . | . . Wheel . | . . Hover . | . . Flight 2 | . 2 Utility 1 | 1 . Device . | . . Storage 1 | 1 . Processor . | . . Hackware . | . . Protection . | . . Artifact . | . . Weapon 1 | . 1 Energy Gun . | . . Energy Cannon . | . . Ballistic Gun 1 | . 1 Ballistic Cannon . | . . Launcher . | . . Special Weapon . | . . Impact Weapon . | . . Slashing Weapon . | . . Piercing Weapon . | . . Special Melee Weapon . | . . Unidentified Prototypes . | . . Parts Lost 2 | . 2 Power 1 | . 1 Propulsion . | . . Utility . | . . Weapon 1 | . 1 Highest Loss Streak 1 | . 1 Average Slot Usage (%) 26 | . 26 Engine 7 | . 7 Storage 14 | . 14 Ballistic Gun 5 | . 5 Naked Turns . | . . Heaviest Build 9 | 9 7 Greatest Support 8 | 3 8 Greatest Overweight (x) 2 | 2 2 Average Overweight (x) 1 | 1 1 Largest Inventory Capacity 6 | 6 6 Average Capacity 5 | 5 6 Most Carried 2 | 2 2 Average Carried . | . . Final Capacity 6 | 6 6 Final Carried . | . . Class Distribution -------------------- 100% | Mutant Dominant Class ---------------- Mutant | -10/Materials Resources | -11 -10 ----------- Run | Scr Mat Matter Collected 119 | 119 . Remotely . | . . Salvage Created 74 | . 74 Parts 10 | . 10 Haulers Intercepted . | . . Recyclers Shooed . | . . Parts Field Recycled . | . . Retrieved Matter . | . . Parts Self-Destructed . | . . Prevented . | . . Kills | -11 -10 ------- Run | Scr Mat Combat Hostiles Destroyed 3 | . 3 Guns 3 | . 3 Classes Destroyed 2 | . 2 Watcher 1 | . 1 Swarmer 3 | . 3 Best Kill Streak 4 | . 4 Combat Bots Only 3 | . 3 Max Kills in Single Turn 1 | . 1 Gunslinging . | . . Exploded . | . . Melee . | . . Uniques/NPCs Destroyed . | . . Combat | -11 -10 -------- Run | Scr Mat Damage Taken 480 | . 480 Core 257 | . 257 Absorbed by Shields . | . . Core Remaining (%) 100 | 100 . Volleys Fired 17 | . 17 Largest 1 | . 1 Hottest 20 | . 20 Shots Fired 17 | . 17 Gun 17 | . 17 Cannon . | . . Launcher . | . . Special . | . . Kinetic 17 | . 17 Thermal . | . . Explosive . | . . Electromagnetic . | . . Robot Hit Streak 5 | . 5 Robot Miss Streak 1 | . 1 Penetration Max . | . . Secondary Targets . | . . Shots Hit Robots 14 | . 14 Core Hits 4 | . 4 Critical Hits . | . . Critical Kills . | . . Critical Parts Destroyed . | . . Melee Attacks . | . . Impact . | . . Slashing . | . . Piercing . | . . Sneak Attacks . | . . Combat Hostiles . | . . Follow-up Attacks . | . . Damage Inflicted 210 | . 210 Guns 208 | . 208 Cannons . | . . Explosions . | . . Melee . | . . Ramming 2 | . 2 Kinetic 208 | . 208 Thermal . | . . Explosive . | . . Electromagnetic . | . . Impact . | . . Slashing . | . . Piercing . | . . Highest Corruption . | . . Average Corruption . | . . Corruption Purged . | . . Overload Shots . | . . Overflow Damage . | . . Projectiles . | . . Explosions . | . . Melee . | . . Knockbacks . | . . Impact . | . . Kinetic . | . . Secondary . | . . Self-Inflicted Damage 1 | . 1 Shots . | . . Rammed 2 | . 2 Targets Rammed 2 | . 2 Kicked . | . . Crushed . | . . Highest Temperature 3 | . 3 Average Temperature 3 | . 3 Received Heat Transfer 240 | . 240 Siege Activations . | . . Robots Corrupted . | . . Combat Hostiles . | . . Parts Fried . | . . Impact Corruptions . | . . Robots Melted . | . . Combat Hostiles . | . . Parts Melted . | . . Heat Transferred . | . . Parts Sabotaged . | . . Parts Stolen . | . . Parts Stripped . | . . Power Chain Reactions . | . . Missiles Intercepted . | . . Alert | -11 -10 ------- Run | Scr Mat Peak Influence 97 | . 97 Average Influence 22 | . 29 Maximum Alert Level . | . . Low Security (%) 100 | 100 100 Level 1 . | . . Level 2 . | . . Level 3 . | . . Level 4 . | . . Level 5 . | . . High Security . | . . Max Security . | . . Squads Dispatched 1 | . 1 Investigation 1 | . 1 Extermination . | . . Reinforcement . | . . Assault . | . . Garrison . | . . Intercept . | . . Construction Impeded . | . . Haulers Reinforced . | . . Stealth | -11 -10 --------- Run | Scr Mat Distress Signals 2 | . 2 Communications Jammed . | . . Distress Signals . | . . Times Spotted 11 | . 11 Peak Tracking Total 9 | . 9 Tactical Retreats 1 | . 1 Traps | -11 -10 ------- Run | Scr Mat Traps Triggered 1 | . 1 Indirectly . | . . Trap Hack Attempts . | . . Triggered . | . . Disarmed . | . . Reprogrammed . | . . Reused . | . . Traps Extracted . | . . Installed . | . . Triggered . | . . Machines | -11 -10 ---------- Run | Scr Mat Machines Disabled . | . . Max in Single Turn . | . . Machines Sabotaged . | . . Garrisons Compromised . | . . Overloaded Fab Kills . | . . Fab Network Shutdowns . | . . Hacking | -11 -10 --------- Run | Scr Mat Machines Accessed . | . . Terminals . | . . Fabricators . | . . Repair Stations . | . . Recycling Units . | . . Scanalyzers . | . . Garrison Access . | . . Total Hacks . | . . Successful . | . . Failed . | . . Catastrophic . | . . Database Lockouts . | . . Manual . | . . Terminals . | . . Fabricators . | . . Repair Stations . | . . Recycling Units . | . . Scanalyzers . | . . Garrison Access . | . . Terminal Hacks . | . . Fabricator Hacks . | . . Repair Station Hacks . | . . Recycling Unit Hacks . | . . Scanalyzer . | . . Garrison Access Hacks . | . . Unauthorized Hacks . | . . Terminals . | . . Fabricators . | . . Repair Stations . | . . Recycling Units . | . . Scanalyzers . | . . Garrison Access . | . . Data Cores Recovered . | . . Used . | . . Hacking Detections . | . . Full Trace Events . | . . Feedback Events . | . . Feedback Blocked . | . . Robot Schematics Acquired . | . . Robots Built . | . . Matter . | . . Time . | . . Total Robot Build Rating . | . . Part Schematics Acquired . | . . Parts Built . | . . Matter . | . . Time . | . . Total Part Build Rating . | . . Parts Repaired . | . . Time . | . . Parts Recycled . | . . Recycled Matter . | . . Retrieved Matter . | . . Retrieved Components . | . . Parts Scanalyzed . | . . Part Schematics Acquired . | . . Parts Damaged . | . . Bothacking | -11 -10 ------------ Run | Scr Mat Used RIF Installer . | . . Robots Hacked . | . . Non-combat . | . . Combat . | . . Robot Hacks Applied . | . . Relay Couplers Released . | . . Robots Rewired . | . . Allies Hacked . | . . Hacks Repelled . | . . Allies | -11 -10 -------- Run | Scr Mat Total Allies . | . . Largest Group . | . . Highest-Rated Group . | . . Highest-Rated Ally . | . . Total Orders . | . . Ally Attacks . | . . Total Damage . | . . Kills . | . . Allies Corrupted . | . . Allies Melted . | . . Intel | -11 -10 ------- Run | Scr Mat Robot Analysis Total . | . . Derelict Logs Recovered . | . . Drone Launches . | . . Drone Recoveries . | . . Exploration | -11 -10 ------------- Run | Scr Mat Turns Passed 157 | 39 118 Spaces Moved 81 | 28 53 Core 80 | 28 52 Treads . | . . Legs . | . . Wheels . | . . Hover . | . . Flight 1 | . 1 Fastest Speed 37 | 50 37 Average Speed 132 | 117 140 Slowest Speed 150 | 150 150 Overloaded Moves . | . . Propulsion Burnouts . | . . Robots Hopped . | . . Cave-ins Triggered . | . . Exploration Rate (%) 15 | 4 26 Regions Visited 1 Branch Regions . Pre-discovered Areas . | . . Known Exits Taken . | . . Unknown Exits Taken 1 | 1 . Scrap Searched . | . . Spaces Dug . | . . Terrain Destroyed . | . . Melee . | . . Projectile . | . . AOE . | . . Actions | -11 -10 --------- Run | Scr Mat Total 112 | 34 78 Wait . | . . Move 80 | 27 53 Hop . | . . Pick Up 6 | 3 3 Fast Attach . | . . Attach 6 | 3 3 Detach . | . . Swap . | . . Drop 1 | 1 . Fire 17 | . 17 Melee . | . . Ram 2 | . 2 Kick . | . . Crush . | . . Escape Stasis . | . . Rewire . | . . Trap . | . . Miscellaneous . | . . Route ------- -11/Scrapyard -10/Materials (discovered 1 exit: [*Min]) History --------- Turn | Location | Event 18 | -11/Scrapyard | Discovered new exit (range 15) 40 | -11/Scrapyard | Entered Materials 105 | -10/Materials | Discovered new exit (range 16) 136 | -10/Materials | Core integrity fell below 50% 153 | -10/Materials | Core integrity fell below 20% 158 | -10/Materials | Destroyed by G-34 Mercenary with Small Laser Last Messages --------------- 00133_ U-05 Engineer lays Concrete. 00133_ W-16 Scout destroyed. 00136_ K-01 Serf collects debris. 00137_ U-05 Engineer lays Concrete. 00138_ K-01 Serf collects debris. 00138_ U-05 Engineer lays Concrete. 00139_ K-01 Serf collects debris. 00140_ U-05 Engineer lays Concrete. 00141_ K-01 Serf collects debris. 00144_ K-01 Serf cleans the Terminal. 00144_ U-05 Engineer lays Concrete. 00144_ K-01 Serf collects debris. 00150_ Assault Rifle destroyed. 00151_ K-01 Serf collects debris. 00152_ Acquired Flight Unit. 00153_ K-01 Serf collects debris. 00154_ U-05 Engineer lays Concrete. 00154_ Acquired Flight Unit. 00155_ K-01 Serf collects debris. 00156_ K-01 Serf cleans the Terminal. Map ----- +----------------------------------------------------+ | ?????????????????????????????????????????????????? | | ?????????????????????????????????????????????????? | | ?????????????????????????????????????????????????? | | ?????????????????????????????????????????????????? | | ?????????????????????????????????????????????????? | | ?????????????????????????????????????????? ????? | | ?????????????????????????????????????????? #???? | | ????????????????????#????????????????????? #???? | | ????????????????????# ????????? ?????????? #???? | | ??????????????????### ####?###+########?## #???? | | ??????????????????? # ?? #???? | | ????????????????????+ ??? #???? | | ????????????????????# """ ????? #???? | | ????????????????????# % """ ?????? #???? | | ????????????????????? """= ??????? +???? | | ??????????????????????# %gg #????????# #???? | | ??????????????????????#g= !| g########## #???? | | ????????????#####?????#*k ## # #???? | | ??????????? ##### !*!= ## """"" # #???? | | ??????????? !%!k w ## """"" / #???? | | ??????????? < !! ## """"" # #???? | | ??????????? + # #???? | | ???????????" "##### k ######### ##??? | | ???????????? ?"???????##" ||!% g######## #??? | | ???????????????????????#T%*|! = #??? | | ???????????????????????#"@ |! ! #??? | | ???????????????????????# #??? | | ???????????????????????# *%[ ######### #??? | | ???????????????????????# ##+###???????# #####??? | | ???????????????????????# ## ??????????# #??????? | | ???????????????????????+ ## ??????????# #??????? | | ???????????????????????# u ## ??????????# #??????? | | ???????????????????????# ## ??????????# #??????? | | ??????????????????????? # ??????????# #??????? | | ??????????????????????? # ??????????# #??????? | | ??????????????????????# ? ??????????# #??????? | | ??????????????????????# u ??????????### #?###### | | ??????????????????????# u ??????????# #? !# | | ??????????????????????## ###????????# # # | | ???????????????????????# ??# ???????# # """# | | ???????????????????????# ??# ?????# + R"# | | ???????????????????????? ??# ##### # """# | | ?????????????????????????????# # % # | | ?????????????????????????????# ######## | | ?????????????????????????????# #??? | | ???????????????????????? #??? | | ???????????????????????? ##### #??? | | ????????????????????????????????# ####+####??? | | ????????????????????????????????# ?? ????? | | ????????????????????????????????# ## """ ??? | +----------------------------------------------------+ Best States ------------- Heat Dissipation 25 Energy Generation 10 Energy Capacity 250 Matter Stores 201 Matter Capacity 300 Sight Range 16 Terrain Scan Density 10 Resistance: KI 20 Resistance: TH 20 Resistance: EX 20 Resistance: EM 20 Resistance: I 20 Resistance: S 20 Resistance: P 20 Evasion (%) 40 Offensive Hacking 10 Item Schematics ----------------- None Robot Schematics ------------------ None Fabricated ------------ Nothing Alien Tech Used ----------------- None Achievements -------------- None Challenges ------------ None Game ------ Seed AssembledRestorationWand Manual? 0 Play Time 00:02:25 Cumulative 30.8 hours Start 2020.06.16 @ 21:41:21 End 2020.06.16 @ 21:42:45 Sessions 1 Manual Loads 0 Difficulty Adventurer Special Mode None Game No. 32 Rogue 0 Adventurer 32 Explorer 0 Win Type - Total 0 Types 0/0/0/0/0/0/0 Lore% 15 Gallery% 36 Achievement% 25 Wizard Run 0 Options --------- ASCII 0 Keyboard 0 Movement Numpad Keybinds 0 Fullscreen 0 Font 12/Smallcaps Map View 83x54 Tactical HUD 1 Map Filters NONE Filters NONE Steam X RUN: 77221f2a-c0c5-484b-90ee-60c49e6d6dd8